[Event "Late-Titled-Tuesday-Blitz-March-05-2024"]
[Site "Chess.com"]
[Date "2024.03.05"]
[Round "3"]
[White "GMG"]
[Black "FabianoCaruana"]
[Result "1/2-1/2"]
[WhiteElo "2737"]
[BlackElo "3052"]
[TimeControl "180+1"]
[EndTime "14:28:54 PST"]
[Termination "Game drawn by repetition"]

1. Nf3 {[%clk 0:02:57.9]} 1... d5 {[%clk 0:02:58.9]} 2. g3 {[%clk 0:02:58]} 2...
Nf6 {[%clk 0:02:57.7]} 3. Bg2 {[%clk 0:02:56.5]} 3... g6 {[%clk 0:02:57.9]} 4.
c4 {[%clk 0:02:54.4]} 4... c6 {[%clk 0:02:52.5]} 5. b3 {[%clk 0:02:52.1]} 5...
Bg7 {[%clk 0:02:52.9]} 6. Bb2 {[%clk 0:02:52.2]} 6... O-O {[%clk 0:02:53.5]} 7.
O-O {[%clk 0:02:52.3]} 7... a5 {[%clk 0:02:52.9]} 8. Nc3 {[%clk 0:02:38.3]} 8...
Ne4 {[%clk 0:02:52.9]} 9. d4 {[%clk 0:02:25.8]} 9... Bf5 {[%clk 0:02:46.2]} 10.
Nh4 {[%clk 0:02:21.6]} 10... Nxc3 {[%clk 0:02:45.3]} 11. Bxc3 {[%clk 0:02:22.5]}
11... Be6 {[%clk 0:02:45.3]} 12. cxd5 {[%clk 0:02:17]} 12... cxd5 {[%clk
0:02:46.2]} 13. Nf3 {[%clk 0:02:13.2]} 13... Nc6 {[%clk 0:02:46]} 14. Qd2 {[%clk
0:02:12.3]} 14... a4 {[%clk 0:02:41.1]} 15. b4 {[%clk 0:02:05.3]} 15... Na7
{[%clk 0:02:34.5]} 16. Ne5 {[%clk 0:01:51]} 16... Nb5 {[%clk 0:02:33.6]} 17.
Rac1 {[%clk 0:01:49.3]} 17... Nd6 {[%clk 0:02:27.8]} 18. a3 {[%clk 0:01:34.1]}
18... b5 {[%clk 0:02:24.5]} 19. Nd3 {[%clk 0:01:31.4]} 19... Nc4 {[%clk
0:02:23.7]} 20. Qa2 {[%clk 0:01:31.5]} 20... Bf5 {[%clk 0:02:17.2]} 21. Nc5
{[%clk 0:01:31.6]} 21... Rb8 {[%clk 0:02:11.2]} 22. Rcd1 {[%clk 0:01:25.7]}
22... h5 {[%clk 0:02:07.9]} 23. h3 {[%clk 0:01:25.1]} 23... e6 {[%clk 0:02:04]}
24. Rfe1 {[%clk 0:01:22.2]} 24... Rc8 {[%clk 0:01:49.9]} 25. Bb2 {[%clk
0:01:19.1]} 25... Qe7 {[%clk 0:01:46.2]} 26. Bc1 {[%clk 0:01:17.7]} 26... Rfd8
{[%clk 0:01:45.5]} 27. e3 {[%clk 0:01:14]} 27... g5 {[%clk 0:01:32.3]} 28. f4
{[%clk 0:01:05.2]} 28... gxf4 {[%clk 0:01:21.2]} 29. exf4 {[%clk 0:01:04.1]}
29... Qf6 {[%clk 0:01:20.4]} 30. Kh2 {[%clk 0:00:55.6]} 30... Qg6 {[%clk
0:01:20.5]} 31. Be3 {[%clk 0:00:51.4]} 31... Bc2 {[%clk 0:01:07.6]} 32. Rc1
{[%clk 0:00:51]} 32... Nxe3 {[%clk 0:01:04.8]} 33. Rxe3 {[%clk 0:00:42.9]} 33...
Bxd4 {[%clk 0:01:04.8]} 34. Re2 {[%clk 0:00:38.5]} 34... Bf5 {[%clk 0:01:02.4]}
35. Qd2 {[%clk 0:00:37.7]} 35... Bg7 {[%clk 0:00:57.6]} 36. Bf3 {[%clk
0:00:34.8]} 36... d4 {[%clk 0:00:47.1]} 37. Rg2 {[%clk 0:00:31.9]} 37... Qh6
{[%clk 0:00:38.1]} 38. Be4 {[%clk 0:00:19.9]} 38... Rxc5 {[%clk 0:00:35.8]} 39.
bxc5 {[%clk 0:00:17.1]} 39... Bxe4 {[%clk 0:00:35.9]} 40. c6 {[%clk 0:00:15.6]}
40... Bxg2 {[%clk 0:00:34.7]} 41. c7 {[%clk 0:00:16]} 41... Rc8 {[%clk
0:00:34.5]} 42. Qxg2 {[%clk 0:00:16.6]} 42... e5 {[%clk 0:00:20.5]} 43. Rc6
{[%clk 0:00:16]} 43... Qh7 {[%clk 0:00:19.1]} 44. Qd5 {[%clk 0:00:15.4]} 44...
Qf5 {[%clk 0:00:17.2]} 45. Qd8+ {[%clk 0:00:09.7]} 45... Bf8 {[%clk 0:00:17.5]}
46. fxe5 {[%clk 0:00:06.6]} 46... h4 {[%clk 0:00:14.8]} 47. Qxh4 {[%clk
0:00:05.2]} 47... Qf2+ {[%clk 0:00:12.1]} 48. Kh1 {[%clk 0:00:05.6]} 48... Qf3+
{[%clk 0:00:12.4]} 49. Kh2 {[%clk 0:00:05.8]} 49... d3 {[%clk 0:00:07.2]} 50.
Qg5+ {[%clk 0:00:03.7]} 50... Kh7 {[%clk 0:00:04.7]} 51. Qh4+ {[%clk 0:00:03.2]}
51... Kg8 {[%clk 0:00:05.2]} 52. Qg5+ {[%clk 0:00:03.6]} 52... Kh7 {[%clk
0:00:05.7]} 53. Qh4+ {[%clk 0:00:04]} 53... Kg7 {[%clk 0:00:05.7]} 54. Qg5+
{[%clk 0:00:04.1]} 54... Kh7 {[%clk 0:00:06]} 1/2-1/2

[Event "Late-Titled-Tuesday-Blitz-March-05-2024"]
[Site "Chess.com"]
[Date "2024.03.05"]
[Round "3"]
[White "Sinquefield"]
[Black "SocoLoco"]
[Result "1-0"]
[WhiteElo "2489"]
[BlackElo "2231"]
[TimeControl "180+1"]
[EndTime "14:28:56 PST"]
[Termination "Sinquefield won on time"]

1. e4 {[%clk 0:03:00.9]} 1... c5 {[%clk 0:02:59.3]} 2. Nf3 {[%clk 0:03:00.3]}
2... e6 {[%clk 0:02:59.3]} 3. d4 {[%clk 0:03:00.7]} 3... cxd4 {[%clk 0:02:59.9]}
4. Nxd4 {[%clk 0:03:01.6]} 4... Nf6 {[%clk 0:02:59.7]} 5. Nc3 {[%clk 0:03:02.1]}
5... Nc6 {[%clk 0:02:59.8]} 6. g3 {[%clk 0:03:02.8]} 6... d5 {[%clk 0:02:58.9]}
7. exd5 {[%clk 0:02:57.3]} 7... exd5 {[%clk 0:02:54.7]} 8. Bg2 {[%clk
0:02:57.2]} 8... Be7 {[%clk 0:02:53.3]} 9. O-O {[%clk 0:02:56.8]} 9... O-O
{[%clk 0:02:52]} 10. Re1 {[%clk 0:02:55.8]} 10... Re8 {[%clk 0:02:51.2]} 11. h3
{[%clk 0:02:54.1]} 11... h6 {[%clk 0:02:51]} 12. Be3 {[%clk 0:02:53.6]} 12... a6
{[%clk 0:02:48.8]} 13. Qd3 {[%clk 0:02:53.7]} 13... Ne5 {[%clk 0:02:35.2]} 14.
Qd1 {[%clk 0:02:49]} 14... Nc4 {[%clk 0:02:32.1]} 15. b3 {[%clk 0:02:44.9]}
15... Nxe3 {[%clk 0:02:31.5]} 16. Rxe3 {[%clk 0:02:45.8]} 16... Bb4 {[%clk
0:02:14.7]} 17. Qd3 {[%clk 0:02:15.2]} 17... Rxe3 {[%clk 0:01:53.2]} 18. Qxe3
{[%clk 0:02:16.1]} 18... Qc7 {[%clk 0:01:46.6]} 19. Nxd5 {[%clk 0:02:05.4]}
19... Nxd5 {[%clk 0:01:43.9]} 20. Bxd5 {[%clk 0:02:06.3]} 20... Bxh3 {[%clk
0:01:37.2]} 21. c4 {[%clk 0:01:59.2]} 21... Bc5 {[%clk 0:01:21]} 22. Rd1 {[%clk
0:01:55.1]} 22... Rd8 {[%clk 0:01:17.4]} 23. Qf3 {[%clk 0:01:48.9]} 23... Qd7
{[%clk 0:01:12.2]} 24. Kh2 {[%clk 0:01:19.7]} 24... Bg4 {[%clk 0:01:10.6]} 25.
Qd3 {[%clk 0:01:08.1]} 25... Bxd1 {[%clk 0:01:08.4]} 26. Qxd1 {[%clk 0:01:09]}
26... b6 {[%clk 0:01:01.3]} 27. Qd3 {[%clk 0:01:05.7]} 27... Bxd4 {[%clk
0:00:51.6]} 28. Qxd4 {[%clk 0:01:05.8]} 28... Qd6 {[%clk 0:00:50.4]} 29. Kg2
{[%clk 0:01:03.2]} 29... Kf8 {[%clk 0:00:41.9]} 30. Qd3 {[%clk 0:00:49.9]} 30...
g6 {[%clk 0:00:35.6]} 31. Qd4 {[%clk 0:00:47.7]} 31... a5 {[%clk 0:00:34]} 32.
Qh8+ {[%clk 0:00:43.6]} 32... Ke7 {[%clk 0:00:33.8]} 33. Qxh6 {[%clk 0:00:44.5]}
33... Qe5 {[%clk 0:00:26.3]} 34. Qh4+ {[%clk 0:00:35]} 34... g5 {[%clk
0:00:18.7]} 35. Qh7 {[%clk 0:00:32.3]} 35... Rxd5 {[%clk 0:00:18.9]} 36. cxd5
{[%clk 0:00:30]} 36... Qxd5+ {[%clk 0:00:19.8]} 37. Kg1 {[%clk 0:00:25.9]} 37...
a4 {[%clk 0:00:19.9]} 38. Qc2 {[%clk 0:00:24.8]} 38... axb3 {[%clk 0:00:19.1]}
39. axb3 {[%clk 0:00:25.7]} 39... b5 {[%clk 0:00:17.4]} 40. Kh2 {[%clk 0:00:24]}
40... Ke6 {[%clk 0:00:17.3]} 41. Qe2+ {[%clk 0:00:23.4]} 41... Kf6 {[%clk
0:00:16.8]} 42. f4 {[%clk 0:00:20.5]} 42... gxf4 {[%clk 0:00:15.9]} 43. gxf4
{[%clk 0:00:21.4]} 43... Qf5 {[%clk 0:00:14.3]} 44. Kg3 {[%clk 0:00:21.1]} 44...
Kg6 {[%clk 0:00:13.9]} 45. Qe3 {[%clk 0:00:17.1]} 45... Qb1 {[%clk 0:00:12.5]}
46. Qb6+ {[%clk 0:00:16.4]} 46... f6 {[%clk 0:00:11.9]} 47. Qxb5 {[%clk
0:00:16.3]} 47... Qc2 {[%clk 0:00:12.3]} 48. Qc4 {[%clk 0:00:13.1]} 48... Qd1
{[%clk 0:00:09.5]} 49. Qg8+ {[%clk 0:00:11.7]} 49... Kh6 {[%clk 0:00:08.6]} 50.
Qh8+ {[%clk 0:00:11.9]} 50... Kg6 {[%clk 0:00:08.6]} 51. Qg8+ {[%clk 0:00:11.1]}
51... Kh6 {[%clk 0:00:08.6]} 52. Qc4 {[%clk 0:00:10.7]} 52... Qd2 {[%clk
0:00:06.2]} 53. Kf3 {[%clk 0:00:10.9]} 53... Qd1+ {[%clk 0:00:05.7]} 54. Ke4
{[%clk 0:00:10.6]} 54... Qe1+ {[%clk 0:00:01.2]} 55. Kf5 {[%clk 0:00:10.7]} 1-0

[Event "Late-Titled-Tuesday-Blitz-March-05-2024"]
[Site "Chess.com"]
[Date "2024.03.05"]
[Round "3"]
[White "djano"]
[Black "pr1105"]
[Result "1-0"]
[WhiteElo "2569"]
[BlackElo "2395"]
[TimeControl "180+1"]
[EndTime "14:28:57 PST"]
[Termination "djano won by resignation"]

1. e4 {[%clk 0:03:00.9]} 1... e5 {[%clk 0:02:56.7]} 2. Nf3 {[%clk 0:02:59.7]}
2... Nc6 {[%clk 0:02:57.2]} 3. Bc4 {[%clk 0:03:00]} 3... Nf6 {[%clk 0:02:56.8]}
4. d4 {[%clk 0:03:00.1]} 4... exd4 {[%clk 0:02:56.6]} 5. Ng5 {[%clk 0:03:00.4]}
5... d5 {[%clk 0:02:54.5]} 6. exd5 {[%clk 0:03:00.4]} 6... Qe7+ {[%clk
0:02:54.9]} 7. Kf1 {[%clk 0:02:57.9]} 7... Ne5 {[%clk 0:02:53.8]} 8. Qxd4 {[%clk
0:02:57.6]} 8... Nxc4 {[%clk 0:02:54.2]} 9. Qxc4 {[%clk 0:02:57.7]} 9... Qc5
{[%clk 0:02:55]} 10. Qe2+ {[%clk 0:02:53.5]} 10... Be7 {[%clk 0:02:54.5]} 11.
Nc3 {[%clk 0:02:51.9]} 11... Nxd5 {[%clk 0:02:50.3]} 12. Nge4 {[%clk 0:02:40.1]}
12... Nxc3 {[%clk 0:02:42.2]} 13. Nxc3 {[%clk 0:02:41]} 13... O-O {[%clk
0:02:33.2]} 14. Be3 {[%clk 0:02:38.8]} 14... Qc6 {[%clk 0:02:26.2]} 15. Bd4
{[%clk 0:02:30.3]} 15... Re8 {[%clk 0:02:19.8]} 16. Qb5 {[%clk 0:02:26.7]} 16...
Bd7 {[%clk 0:02:11.1]} 17. Qxc6 {[%clk 0:02:26.7]} 17... Bxc6 {[%clk 0:02:12]}
18. f3 {[%clk 0:02:27]} 18... Rad8 {[%clk 0:02:09.3]} 19. Rd1 {[%clk 0:02:27.3]}
19... Rd7 {[%clk 0:02:03.9]} 20. Be3 {[%clk 0:02:15.5]} 20... Bf6 {[%clk
0:01:46.8]} 21. Rxd7 {[%clk 0:02:13.7]} 21... Bxd7 {[%clk 0:01:47.7]} 22. Kf2
{[%clk 0:02:08]} 22... Be6 {[%clk 0:01:40.6]} 23. Nb5 {[%clk 0:02:01.6]} 23...
c6 {[%clk 0:01:32.6]} 24. Nc7 {[%clk 0:02:01.2]} 24... Rd8 {[%clk 0:01:25.3]}
25. Nxe6 {[%clk 0:01:56.1]} 25... fxe6 {[%clk 0:01:26.2]} 26. c3 {[%clk
0:01:55.2]} 26... Kf7 {[%clk 0:01:22.3]} 27. Ke2 {[%clk 0:01:54.2]} 27... h5
{[%clk 0:01:19.6]} 28. a4 {[%clk 0:01:51.8]} 28... a6 {[%clk 0:01:17.8]} 29. a5
{[%clk 0:01:49.7]} 29... Rd5 {[%clk 0:01:17.4]} 30. Ra1 {[%clk 0:01:49.1]} 30...
g5 {[%clk 0:01:14.9]} 31. Ra4 {[%clk 0:01:48.1]} 31... Rb5 {[%clk 0:01:13.9]}
32. Ra2 {[%clk 0:01:44.4]} 32... Kg6 {[%clk 0:01:13.9]} 33. Kd3 {[%clk
0:01:42.9]} 33... Kf5 {[%clk 0:01:13.9]} 34. Kc4 {[%clk 0:01:35.4]} 34... Re5
{[%clk 0:01:07.9]} 35. Kd3 {[%clk 0:01:30.2]} 35... Rd5+ {[%clk 0:01:07.9]} 36.
Ke2 {[%clk 0:01:30.5]} 36... Rb5 {[%clk 0:01:07.3]} 37. h3 {[%clk 0:01:07.9]}
37... h4 {[%clk 0:01:04.3]} 38. Kd3 {[%clk 0:01:05.1]} 38... Rd5+ {[%clk
0:00:53.9]} 39. Kc2 {[%clk 0:01:05.4]} 39... Bd8 {[%clk 0:00:51.1]} 40. b4
{[%clk 0:01:03.7]} 40... e5 {[%clk 0:00:32.4]} 41. c4 {[%clk 0:00:59.6]} 41...
Rd7 {[%clk 0:00:30.8]} 42. Ra1 {[%clk 0:00:56.8]} 42... e4 {[%clk 0:00:30.1]}
43. Rf1 {[%clk 0:00:56.6]} 43... exf3 {[%clk 0:00:28.4]} 44. Rxf3+ {[%clk
0:00:57.5]} 44... Ke4 {[%clk 0:00:29]} 45. Bc5 {[%clk 0:00:53.6]} 45... Bc7
{[%clk 0:00:22.2]} 46. Rf8 {[%clk 0:00:46.3]} 46... Bf4 {[%clk 0:00:22.4]} 47.
Re8+ {[%clk 0:00:45.4]} 47... Kf5 {[%clk 0:00:22.9]} 48. Kc3 {[%clk 0:00:37.5]}
48... Be5+ {[%clk 0:00:22]} 49. Kb3 {[%clk 0:00:36.3]} 49... Rd3+ {[%clk
0:00:20.6]} 50. Kc2 {[%clk 0:00:33.9]} 50... Rd7 {[%clk 0:00:20.6]} 51. Be3
{[%clk 0:00:31.5]} 51... Bf4 {[%clk 0:00:19.1]} 52. Bc5 {[%clk 0:00:26.2]} 52...
Rd2+ {[%clk 0:00:19]} 53. Kc3 {[%clk 0:00:26.2]} 53... Rxg2 {[%clk 0:00:19]} 54.
Re7 {[%clk 0:00:26.8]} 54... Rg3+ {[%clk 0:00:19.3]} 55. Kc2 {[%clk 0:00:22.4]}
55... Rxh3 {[%clk 0:00:19.1]} 56. Rxb7 {[%clk 0:00:23.1]} 56... g4 {[%clk
0:00:18.5]} 57. Rf7+ {[%clk 0:00:23.1]} 57... Ke4 {[%clk 0:00:18.5]} 58. b5
{[%clk 0:00:23.7]} 58... cxb5 {[%clk 0:00:18.2]} 59. cxb5 {[%clk 0:00:24.6]}
59... axb5 {[%clk 0:00:18.4]} 60. a6 {[%clk 0:00:25.5]} 60... Bb8 {[%clk
0:00:17.5]} 61. Rf8 {[%clk 0:00:21.9]} 61... Rh2+ {[%clk 0:00:17.9]} 62. Kb3
{[%clk 0:00:21.7]} 62... Rh3+ {[%clk 0:00:15.6]} 63. Kb4 {[%clk 0:00:22.1]}
63... g3 {[%clk 0:00:14.8]} 64. Rxb8 {[%clk 0:00:20.5]} 64... g2 {[%clk
0:00:15.7]} 65. Rg8 {[%clk 0:00:20.1]} 65... Rg3 {[%clk 0:00:15.7]} 66. Rxg3
{[%clk 0:00:19.8]} 66... hxg3 {[%clk 0:00:16.6]} 67. a7 {[%clk 0:00:20]} 1-0

[Event "Late-Titled-Tuesday-Blitz-March-05-2024"]
[Site "Chess.com"]
[Date "2024.03.05"]
[Round "3"]
[White "dimoni64"]
[Black "Pachonpower"]
[Result "1-0"]
[WhiteElo "1965"]
[BlackElo "2282"]
[TimeControl "180+1"]
[EndTime "14:28:59 PST"]
[Termination "dimoni64 won by resignation"]

1. d4 {[%clk 0:03:00.9]} 1... Nf6 {[%clk 0:02:36.9]} 2. c4 {[%clk 0:03:00.8]}
2... e5 {[%clk 0:02:36.3]} 3. dxe5 {[%clk 0:03:00]} 3... Ng4 {[%clk 0:02:36.8]}
4. Bf4 {[%clk 0:03:00.3]} 4... h5 {[%clk 0:02:27.7]} 5. Nf3 {[%clk 0:02:59.1]}
5... Bc5 {[%clk 0:02:21.5]} 6. e3 {[%clk 0:02:57.8]} 6... Nc6 {[%clk 0:02:21.5]}
7. h3 {[%clk 0:02:54]} 7... Nh6 {[%clk 0:02:20.3]} 8. Nc3 {[%clk 0:02:45.2]}
8... a6 {[%clk 0:02:12.1]} 9. Bd3 {[%clk 0:02:42.3]} 9... Nb4 {[%clk 0:02:12]}
10. Bb1 {[%clk 0:02:41.4]} 10... d6 {[%clk 0:02:12.2]} 11. a3 {[%clk 0:02:41.1]}
11... Nc6 {[%clk 0:02:06.5]} 12. exd6 {[%clk 0:02:40.3]} 12... cxd6 {[%clk
0:02:07.4]} 13. O-O {[%clk 0:02:38.7]} 13... Be6 {[%clk 0:01:50.7]} 14. b4
{[%clk 0:02:36.2]} 14... Bb6 {[%clk 0:01:41.2]} 15. Bd3 {[%clk 0:02:26.9]} 15...
Bc7 {[%clk 0:01:35]} 16. Nd5 {[%clk 0:02:18.1]} 16... Bxd5 {[%clk 0:01:28.9]}
17. cxd5 {[%clk 0:02:18]} 17... Ne7 {[%clk 0:01:29.5]} 18. e4 {[%clk 0:02:13.9]}
18... f6 {[%clk 0:01:26.3]} 19. Rc1 {[%clk 0:02:09.3]} 19... g5 {[%clk
0:01:21.9]} 20. Nxg5 {[%clk 0:01:49.6]} 20... fxg5 {[%clk 0:01:16.3]} 21. Bxg5
{[%clk 0:01:49.1]} 21... Nf7 {[%clk 0:01:12.5]} 22. Bf6 {[%clk 0:01:48.3]} 22...
Rh6 {[%clk 0:01:12.4]} 23. Bg7 {[%clk 0:01:25.6]} 23... Rg6 {[%clk 0:01:06.5]}
24. Bd4 {[%clk 0:01:19.1]} 24... Rh6 {[%clk 0:01:02.8]} 25. Qc2 {[%clk
0:01:16.2]} 25... Bb6 {[%clk 0:00:58.5]} 26. Qa4+ {[%clk 0:01:07.2]} 26... Kf8
{[%clk 0:00:56.9]} 27. Be3 {[%clk 0:01:03.3]} 27... Rf6 {[%clk 0:00:50.1]} 28.
Qc2 {[%clk 0:00:43.2]} 28... Ne5 {[%clk 0:00:44.3]} 29. Be2 {[%clk 0:00:40.4]}
29... Kg7 {[%clk 0:00:40.8]} 30. Bxh5 {[%clk 0:00:39.7]} 30... Bxe3 {[%clk
0:00:37.3]} 31. fxe3 {[%clk 0:00:39.5]} 31... Rxf1+ {[%clk 0:00:34.6]} 32. Rxf1
{[%clk 0:00:39.1]} 32... Qd7 {[%clk 0:00:33]} 33. Qf2 {[%clk 0:00:36.8]} 33...
Ng8 {[%clk 0:00:30]} 34. Qg3+ {[%clk 0:00:34.4]} 34... Kh8 {[%clk 0:00:30.3]}
35. Qh4 {[%clk 0:00:23.6]} 35... Qh7 {[%clk 0:00:27]} 36. g4 {[%clk 0:00:21.8]}
36... Kg7 {[%clk 0:00:13.4]} 37. Rf5 {[%clk 0:00:17.4]} 37... Rf8 {[%clk
0:00:12]} 38. Qg5+ {[%clk 0:00:16.8]} 38... Kh8 {[%clk 0:00:11.3]} 39. Rxf8
{[%clk 0:00:16.5]} 39... Qg7 {[%clk 0:00:11.6]} 40. Qxg7+ {[%clk 0:00:14.1]}
40... Kxg7 {[%clk 0:00:12.5]} 41. Rb8 {[%clk 0:00:13.8]} 41... Nf6 {[%clk
0:00:13.1]} 42. Rxb7+ {[%clk 0:00:13.9]} 42... Kh6 {[%clk 0:00:13.8]} 43. Bf7
{[%clk 0:00:12.7]} 43... Nxe4 {[%clk 0:00:13.9]} 44. Be6 {[%clk 0:00:12.3]}
44... Kg5 {[%clk 0:00:13.7]} 45. Ra7 {[%clk 0:00:11.2]} 45... Nf3+ {[%clk
0:00:13.6]} 46. Kg2 {[%clk 0:00:10.9]} 46... Ne5 {[%clk 0:00:14.5]} 47. Rxa6
{[%clk 0:00:10.5]} 47... Kh4 {[%clk 0:00:12.8]} 48. b5 {[%clk 0:00:09.4]} 48...
Nc5 {[%clk 0:00:12.7]} 49. Rxd6 {[%clk 0:00:08]} 49... Ned3 {[%clk 0:00:12.9]}
50. b6 {[%clk 0:00:07.7]} 50... Ne1+ {[%clk 0:00:12.6]} 51. Kf1 {[%clk
0:00:07.3]} 51... Ned3 {[%clk 0:00:13.5]} 52. a4 {[%clk 0:00:06]} 52... Nb4
{[%clk 0:00:13]} 53. a5 {[%clk 0:00:05.3]} 53... Nba6 {[%clk 0:00:12.5]} 54. Rd8
{[%clk 0:00:05.1]} 54... Nb7 {[%clk 0:00:12.4]} 55. Rh8+ {[%clk 0:00:02.8]}
55... Kg3 {[%clk 0:00:12.3]} 56. Bc8 {[%clk 0:00:03.7]} 56... Nxa5 {[%clk
0:00:10.2]} 57. Bxa6 {[%clk 0:00:04]} 1-0

[Event "Late-Titled-Tuesday-Blitz-March-05-2024"]
[Site "Chess.com"]
[Date "2024.03.05"]
[Round "3"]
[White "TanitoluwaAps116"]
[Black "Practical-Play"]
[Result "1-0"]
[WhiteElo "2831"]
[BlackElo "2565"]
[TimeControl "180+1"]
[EndTime "14:29:03 PST"]
[Termination "TanitoluwaAps116 won by resignation"]

1. e4 {[%clk 0:03:00.3]} 1... c5 {[%clk 0:02:50]} 2. Nf3 {[%clk 0:02:57.2]} 2...
a6 {[%clk 0:02:50.3]} 3. c3 {[%clk 0:02:56.4]} 3... e6 {[%clk 0:02:49]} 4. d4
{[%clk 0:02:56]} 4... d5 {[%clk 0:02:47.5]} 5. exd5 {[%clk 0:02:55.4]} 5... exd5
{[%clk 0:02:47]} 6. Bd3 {[%clk 0:02:55.6]} 6... Nf6 {[%clk 0:02:46.4]} 7. O-O
{[%clk 0:02:53]} 7... Be7 {[%clk 0:02:44.8]} 8. dxc5 {[%clk 0:02:52.4]} 8...
Bxc5 {[%clk 0:02:42.7]} 9. Re1+ {[%clk 0:02:51.5]} 9... Be6 {[%clk 0:02:42.2]}
10. Be3 {[%clk 0:02:37.8]} 10... Nbd7 {[%clk 0:02:31.7]} 11. Nbd2 {[%clk
0:02:34.9]} 11... O-O {[%clk 0:02:31.1]} 12. Bxc5 {[%clk 0:02:32.4]} 12... Nxc5
{[%clk 0:02:32]} 13. Bc2 {[%clk 0:02:31.3]} 13... Qb6 {[%clk 0:02:23.7]} 14. b4
{[%clk 0:02:13]} 14... Ncd7 {[%clk 0:02:16.1]} 15. Nd4 {[%clk 0:02:11.7]} 15...
Bg4 {[%clk 0:02:07.9]} 16. N2f3 {[%clk 0:01:59.4]} 16... Rac8 {[%clk 0:02:06.8]}
17. Qd2 {[%clk 0:01:57.9]} 17... Qc7 {[%clk 0:02:01.6]} 18. Rac1 {[%clk
0:01:54.9]} 18... Rfe8 {[%clk 0:01:55.4]} 19. h3 {[%clk 0:01:46.9]} 19... Bh5
{[%clk 0:01:42]} 20. Nh4 {[%clk 0:01:35.1]} 20... Rxe1+ {[%clk 0:01:36.3]} 21.
Qxe1 {[%clk 0:01:29.3]} 21... Re8 {[%clk 0:01:33.9]} 22. Qd2 {[%clk 0:01:27.8]}
22... Ne4 {[%clk 0:01:25.6]} 23. Bxe4 {[%clk 0:01:14.8]} 23... Rxe4 {[%clk
0:00:59]} 24. Nhf5 {[%clk 0:01:10.5]} 24... Bg6 {[%clk 0:00:50.8]} 25. Ne3
{[%clk 0:01:04.8]} 25... Qf4 {[%clk 0:00:37.2]} 26. Rd1 {[%clk 0:00:55.2]} 26...
Nf6 {[%clk 0:00:36.2]} 27. Ne2 {[%clk 0:00:51.6]} 27... Qe5 {[%clk 0:00:33.6]}
28. Ng3 {[%clk 0:00:38.8]} 28... Rf4 {[%clk 0:00:17.1]} 29. Nxd5 {[%clk
0:00:23.8]} 29... Nxd5 {[%clk 0:00:17.2]} 30. Qxd5 {[%clk 0:00:24.7]} 30... Qxd5
{[%clk 0:00:16.5]} 31. Rxd5 {[%clk 0:00:24.9]} 31... h6 {[%clk 0:00:15.7]} 32.
Rd7 {[%clk 0:00:17.5]} 32... Rc4 {[%clk 0:00:13.2]} 33. Ne2 {[%clk 0:00:14.9]}
33... b6 {[%clk 0:00:10.4]} 34. Rd6 {[%clk 0:00:14.8]} 34... a5 {[%clk
0:00:07.9]} 35. Rxb6 {[%clk 0:00:14.8]} 35... Bd3 {[%clk 0:00:04.3]} 36. Nc1
{[%clk 0:00:06.8]} 36... Bg6 {[%clk 0:00:03.8]} 37. Nb3 {[%clk 0:00:04.2]} 37...
a4 {[%clk 0:00:03.8]} 38. Nc5 {[%clk 0:00:04.3]} 38... Rxc3 {[%clk 0:00:03.5]}
39. Ra6 {[%clk 0:00:02.6]} 39... Rc1+ {[%clk 0:00:03.3]} 40. Kh2 {[%clk
0:00:02.6]} 40... Rc2 {[%clk 0:00:03.3]} 41. Rxa4 {[%clk 0:00:02.1]} 41... Rxf2
{[%clk 0:00:03.9]} 42. Kg3 {[%clk 0:00:02.7]} 42... Rd2 {[%clk 0:00:03.6]} 43.
Ra8+ {[%clk 0:00:02.9]} 43... Kh7 {[%clk 0:00:03.6]} 44. a3 {[%clk 0:00:03.3]}
44... h5 {[%clk 0:00:03.9]} 45. Kh2 {[%clk 0:00:03.3]} 45... Kh6 {[%clk
0:00:04]} 46. Re8 {[%clk 0:00:02.9]} 46... Kg5 {[%clk 0:00:04]} 47. Re3 {[%clk
0:00:03.5]} 47... Ra2 {[%clk 0:00:03.5]} 48. Rg3+ {[%clk 0:00:03.8]} 48... Kf4
{[%clk 0:00:03.8]} 49. Rb3 {[%clk 0:00:03.6]} 49... Bf5 {[%clk 0:00:03.4]} 50.
b5 {[%clk 0:00:03.9]} 50... h4 {[%clk 0:00:02]} 51. b6 {[%clk 0:00:04]} 51...
Bc8 {[%clk 0:00:02.1]} 52. b7 {[%clk 0:00:03.5]} 52... Bxb7 {[%clk 0:00:03]} 53.
Rxb7 {[%clk 0:00:03]} 53... Rxa3 {[%clk 0:00:02.1]} 54. Rxf7+ {[%clk 0:00:03.6]}
54... Kg5 {[%clk 0:00:01.9]} 55. Rxg7+ {[%clk 0:00:04]} 55... Kf6 {[%clk
0:00:02.8]} 56. Rg4 {[%clk 0:00:04.5]} 56... Kf5 {[%clk 0:00:02.5]} 57. Ne4
{[%clk 0:00:05.4]} 57... Ra2 {[%clk 0:00:02.4]} 58. Rxh4 {[%clk 0:00:05.1]}
58... Ra4 {[%clk 0:00:03]} 59. Ng3+ {[%clk 0:00:04.8]} 1-0